bitfinex-derivatives/quotes_SOLF0:USTF0_20251219
["timestamp","ask_amount","ask_price","bid_price","bid_amount"]
[1766168495126,0.05764291,124.51,124.49,0.0582817]
[1766168497537,112.4461,124.58,124.49,0.0582817]
[1766168497538,27.65,124.55,124.49,0.0582817]
[1766168497833,27.65,124.55,124.45,112.5516]
[1766168498032,27.65,124.55,124.47,7.2341]
[1766168498233,27.65,124.55,124.47,47.46]
[1766168498627,0.05720638,124.52,124.5,0.05627637]
[1766168499244,27.65,124.58,124.5,0.05627637]
[1766168499432,27.65,124.58,124.47,159.9951]
[1766168499631,27.65,124.58,124.48,7.72913348]
[1766168499934,27.65,124.58,124.49,7.72913348]
[1766168500242,0.05318279,124.55,124.52,0.05378956]
[1766168500836,27.70318279,124.55,124.52,0.00378956]
[1766168501434,27.70318279,124.55,124.43,112.5744]
[1766168501435,27.65,124.54,124.43,112.5744]
[1766168501739,27.65,124.54,124.47,47.46]
[1766168502341,27.65,124.54,124.49,0.06115216]
[1766168502539,0.052064,124.52,124.49,0.06115216]
[1766168504735,27.702064,124.52,124.49,0.00115216]
[1766168504936,112.4437,124.58,124.49,0.00115216]
[1766168504937,113.77832562,124.65,124.52,17.76]
[1766168505236,112.3876,124.64,124.53,7.2309]
[1766168505438,7.226,124.62,124.52,17.76]
[1766168505843,0.05345244,124.58,124.56,0.05981158]
[1766168508743,0.05345244,124.58,124.52,17.76]
[1766168509544,27.70345244,124.58,124.52,17.76]
[1766168509753,0.05345244,124.58,124.54,0.0573317]
[1766168510847,27.70345244,124.58,124.54,0.0573317]
[1766168511646,0.05345244,124.58,124.54,0.0573317]
[1766168512658,0.05345244,124.58,124.55,7.62210458]
[1766168512958,0.05345244,124.58,124.56,7.62210458]
[1766168513162,0.05345244,124.58,124.57,7.62210458]
[1766168513657,0.05345244,124.58,124.57,0.00210458]
[1766168514560,0.05345244,124.58,124.54,0.0573317]
[1766168515052,27.70345244,124.58,124.54,0.0573317]
[1766168518546,27.70345244,124.58,124.49,25.35]
[1766168518752,27.65,124.58,124.47,137.9436]
[1766168519060,27.65,124.58,124.48,25.41]
[1766168519558,47.44,124.59,124.48,25.41]
[1766168519559,0.05547535,124.54,124.52,0.05175569]
[1766168519863,0.05707022,124.54,124.52,0.05175569]
[1766168520560,0.05707022,124.54,124.52,0.00175569]
[1766168520758,27.70707022,124.54,124.52,0.00175569]
[1766168521062,27.65,124.53,124.43,25.44]
[1766168521758,112.4689,124.55,124.44,7.2359]
[1766168521759,34.8818,124.52,124.44,7.2359]
[1766168521952,0.05766183,124.49,124.47,0.06159238]
[1766168522753,112.4689,124.55,124.47,25.48159238]
[1766168522754,47.44,124.53,124.47,25.48159238]
[1766168522953,75.09,124.53,124.45,25.42]
[1766168523357,75.09,124.53,124.46,7.2349]
[1766168523764,0.05934506,124.51,124.48,0.05174047]
[1766168524962,27.38934506,124.51,124.48,0.00174047]
[1766168525174,34.62184506,124.51,124.42,25.42]
[1766168525353,47.44,124.52,124.44,25.42]
[1766168526159,0.05459786,124.49,124.47,0.05651553]
[1766168526855,0.05459786,124.49,124.44,32.656]
[1766168527964,0.05459786,124.49,124.45,0.05620087]
[1766168530270,0.05459786,124.49,124.45,32.72170087]
[1766168530466,0.00459786,124.49,124.45,25.48620087]
[1766168531467,0.00459786,124.49,124.45,0.05620087]
[1766168534671,0.00459786,124.49,124.45,7.29170087]
[1766168539168,0.00459786,124.49,124.46,32.5449]
[1766168540075,0.00459786,124.49,124.46,7.2349]
[1766168541377,0.00459786,124.49,124.45,0.05620087]
[1766168542074,0.00459786,124.49,124.45,7.29190087]
[1766168543675,0.00459786,124.49,124.45,0.05620087]
[1766168561200,26.61459786,124.49,124.45,0.05620087]
[1766168561700,26.61459786,124.49,124.42,25.16]
[1766168562601,26.61459786,124.49,124.44,0.05967321]
[1766168563004,0.00459786,124.49,124.44,25.20967321]
[1766168571812,26.61459786,124.49,124.44,25.20967321]
[1766168572709,26.61,124.47,124.44,0.05967321]
[1766168572910,26.61,124.47,124.41,25.1]
[1766168573416,74.09,124.47,124.41,25.1]
[1766168573812,0.05730424,124.45,124.43,0.05553211]
[1766168576516,26.61,124.49,124.43,25.07553211]
[1766168576721,74.09,124.49,124.43,25.07553211]
[1766168577508,0.053058,124.47,124.43,25.07553211]
[1766168577808,0.053058,124.47,124.43,32.31233211]
[1766168581116,0.003058,124.47,124.44,25.01]
[1766168582507,0.003058,124.47,124.43,0.05553211]
[1766168582916,0.003058,124.47,124.43,25.00553211]
[1766168583117,0.003058,124.47,124.43,32.24213211]
[1766168583313,0.003058,124.47,124.44,24.95]
[1766168583612,0.003058,124.47,124.43,0.05553211]
[1766168585027,35.517758,124.47,124.43,0.05553211]
[1766168586526,7.2352,124.46,124.43,0.05553211]
[1766168586923,75.763058,124.47,124.43,0.05553211]
[1766168588622,82.997758,124.47,124.43,0.05553211]
[1766168589317,35.5153,124.46,124.39,24.95]
[1766168589923,35.5153,124.46,124.4,25.0]
[1766168590317,35.5153,124.46,124.36,167.5646838]
[1766168590318,0.055449,124.44,124.37,32.24]
[1766168590517,28.335449,124.44,124.37,32.24]
[1766168591225,28.335449,124.44,124.38,25.05]
[1766168591420,28.335449,124.44,124.4,0.05635891]
[1766168591725,35.572049,124.44,124.4,0.05635891]
[1766168592111,28.28,124.43,124.38,25.05]
[1766168592520,35.5171,124.43,124.38,25.05]
[1766168592726,35.5171,124.43,124.36,72.52]
[1766168593125,0.05171539,124.41,124.38,0.05778694]
[1766168593321,7.2362,124.45,124.38,25.09778694]
[1766168593322,47.48,124.44,124.38,25.09778694]
[1766168593515,75.76,124.45,124.38,25.09778694]
[1766168593715,28.28,124.45,124.38,0.05778694]
[1766168593921,33.55552001,124.42,124.32,26.96691979]
[1766168594117,52.75552001,124.41,124.32,26.96691979]
[1766168594321,28.28,124.42,124.32,26.96691979]
[1766168594521,75.76,124.42,124.32,26.96691979]
[1766168594917,0.0018907,124.38,124.36,0.055227]
[1766168595124,47.48,124.42,124.36,25.035227]
[1766168596031,0.05912619,124.4,124.36,25.035227]
[1766168602336,0.05912619,124.4,124.36,0.055227]
[1766168606335,0.05912619,124.4,124.36,24.975227]
[1766168610445,26.57,124.46,124.38,7.2395]
[1766168610747,26.57,124.45,124.36,24.92]
[1766168610943,26.57,124.42,124.36,24.92]
[1766168611446,0.05804186,124.4,124.38,0.05424103]
[1766168611743,0.05804186,124.4,124.32,114.58741979]
[1766168611744,0.05804186,124.4,124.34,24.84]
[1766168611944,29.95139255,124.41,124.34,24.84]
[1766168612849,3.44306336,124.39,124.36,0.05540553]
[1766168613836,3.44306336,124.39,124.34,24.84]
[1766168614037,30.14306336,124.39,124.32,7.2431]
[1766168614242,30.14306336,124.39,124.32,32.0831]
[1766168614948,30.14306336,124.39,124.34,0.05251413]
[1766168615337,37.38246336,124.39,124.34,0.05251413]
[1766168615744,26.7,124.38,124.34,0.05251413]
[1766168616141,3.38139255,124.37,124.34,0.05251413]
[1766168617250,30.08139255,124.37,124.34,0.05251413]
[1766168617552,30.08139255,124.37,124.3,32.0744]
[1766168618046,3.38139255,124.36,124.3,32.0744]
[1766168618442,0.06048012,124.34,124.32,0.05419783]
[1766168620145,26.76048012,124.34,124.28,32.1253]
[1766168621154,0.06048012,124.34,124.3,0.06012116]
[1766168623555,0.06048012,124.34,124.3,24.98012116]
[1766168624441,0.06048012,124.34,124.3,0.06012116]
[1766168624442,26.76048012,124.34,124.3,0.06012116]
[1766168626064,0.06048012,124.34,124.3,0.06012116]
[1766168626554,26.76048012,124.34,124.3,0.06012116]
[1766168630956,30.08139255,124.33,124.3,0.00012116]
[1766168633659,26.7,124.33,124.3,0.00012116]
[1766168634760,30.08139255,124.33,124.27,7.2462]
[1766168635660,0.05341443,124.31,124.29,0.06186205]
[1766168637059,26.7,124.36,124.3,24.9]
[1766168637868,26.7,124.36,124.3,32.1443]
[1766168638062,0.05169918,124.34,124.32,0.05734847]
[1766168641952,33.9403,124.38,124.32,24.88734847]
[1766168642157,33.9403,124.38,124.32,24.83]
[1766168642960,0.05449589,124.36,124.34,0.0543811]
[1766168643368,0.05449589,124.36,124.34,0.0043811]
[1766168645361,28.06449589,124.36,124.34,0.0043811]
[1766168646170,28.06449589,124.36,124.29,7.2447]
[1766168646366,28.01,124.36,124.29,32.1447]
[1766168647167,0.05874654,124.34,124.31,0.06028726]
[1766168649973,7.2405,124.37,124.31,24.95028726]
[1766168650370,78.91139255,124.38,124.31,24.95028726]
[1766168650371,31.39139255,124.38,124.31,24.95028726]
[1766168651074,0.05229882,124.36,124.31,24.95028726]
[1766168651277,0.05229882,124.36,124.32,24.83]
[1766168652181,0.05229882,124.36,124.32,32.0733]
[1766168658781,0.05229882,124.36,124.32,24.83]
[1766168660572,26.72229882,124.36,124.31,7.30408726]
[1766168661379,0.05229882,124.36,124.32,32.0232]
[1766168662278,0.05229882,124.36,124.33,24.78]
[1766168662473,0.05229882,124.36,124.33,32.0227]
[1766168670886,0.00229882,124.36,124.33,32.0227]
[1766168680494,0.00229882,124.36,124.31,32.01358726]
[1766168680798,0.00229882,124.36,124.32,24.71]
[1766168681193,26.08229882,124.36,124.31,0.06028726]
[1766168682388,26.08229882,124.36,124.31,24.76028726]
[1766168683010,26.08229882,124.36,124.31,32.00408726]
[1766168684611,26.08229882,124.36,124.31,24.76028726]
[1766168686616,26.08229882,124.36,124.31,0.06028726]
[1766168691026,26.08,124.35,124.25,27.3]
[1766168691319,26.08,124.33,124.25,27.3]
[1766168692017,26.08,124.33,124.28,27.35594629]
[1766168692215,26.08,124.35,124.28,27.35594629]
[1766168693118,0.05846083,124.33,124.28,27.35594629]
[1766168693515,33.3208,124.37,124.3,7.2444]
[1766168693714,33.3208,124.37,124.3,34.5444]
[1766168694520,0.0570543,124.35,124.32,0.05733572]
[1766168699222,26.1370543,124.35,124.28,27.3]
[1766168699422,26.08,124.35,124.28,27.3]
[1766168700327,26.08,124.35,124.26,112.7242]
[1766168700328,0.05878984,124.33,124.3,0.05413394]
[1766168701323,26.08,124.37,124.3,34.59853394]
[1766168701528,26.08,124.37,124.3,34.5444]
[1766168702321,0.05205078,124.35,124.32,0.05410022]
[1766168702823,0.00205078,124.35,124.32,27.35410022]
[1766168703025,26.08,124.41,124.32,27.35410022]
[1766168703223,26.08,124.41,124.32,27.3]
[1766168704124,0.05685298,124.38,124.35,0.05719198]
[1766168705018,28.59685298,124.38,124.35,0.05719198]
[1766168705529,0.05685298,124.38,124.35,0.05719198]
[1766168712327,28.54,124.42,124.35,26.99719198]
[1766168712933,28.54,124.42,124.36,7.2408]
[1766168713434,0.05108983,124.4,124.38,0.05230107]
[1766168714130,28.54,124.43,124.38,0.05230107]
[1766168714629,28.54,124.45,124.38,26.99230107]
[1766168714825,28.54,124.45,124.39,26.94]
[1766168715225,0.0576008,124.43,124.41,0.05196444]
[1766168719530,27.04,124.47,124.41,26.90196444]
[1766168720536,0.06129913,124.45,124.41,26.90196444]
[1766168724339,27.04,124.44,124.41,0.05196444]
[1766168724540,0.06129913,124.45,124.41,0.05196444]
[1766168725339,0.06129913,124.45,124.41,34.13996444]
[1766168725542,52.78473073,124.51,124.41,26.90196444]
[1766168725847,27.04,124.5,124.41,26.85]
[1766168726241,34.2729,124.5,124.43,7.2368]
[1766168726439,27.04,124.49,124.43,7.2368]
[1766168726743,0.06162329,124.47,124.45,0.05249619]
[1766168729649,27.10162329,124.47,124.45,0.00249619]
[1766168729945,27.10162329,124.47,124.4,26.85]
[1766168730146,27.04,124.47,124.4,26.85]
[1766168730843,0.05152945,124.45,124.42,0.05902621]
[1766168734451,0.05152945,124.45,124.42,27.84902621]
[1766168734642,0.00152945,124.45,124.42,27.84902621]
[1766168735548,0.00152945,124.45,124.42,35.08642621]
[1766168737246,0.00152945,124.45,124.42,27.84902621]
[1766168746152,0.00152945,124.45,124.42,0.05902621]
[1766168746948,26.62152945,124.45,124.42,0.05902621]
[1766168755680,26.62152945,124.45,124.39,35.0291]
[1766168756676,26.62152945,124.45,124.41,0.05657584]
[1766168757488,26.62,124.42,124.35,27.79]
[1766168758479,0.06067674,124.4,124.37,0.06034791]
[1766168760674,26.68067674,124.4,124.37,0.00034791]
[1766168761174,0.06067674,124.4,124.37,0.00034791]
[1766168761381,26.62,124.44,124.37,27.79034791]
[1766168762275,26.62,124.44,124.37,0.00034791]
[1766168762485,26.67685332,124.42,124.37,0.00034791]
[1766168762675,26.67685332,124.42,124.38,0.05999799]
[1766168764582,26.67685332,124.42,124.34,28.32]
[1766168764782,26.62,124.42,124.34,28.32]
[1766168765582,0.05187403,124.39,124.37,0.05134714]
[1766168767579,26.47,124.41,124.37,3.428642]
[1766168768581,0.06025681,124.4,124.37,10.668842]
[1766168769286,26.47,124.43,124.37,10.668842]
[1766168769481,26.47,124.43,124.37,10.61749486]
[1766168770483,0.05792788,124.41,124.39,0.05234933]
[1766168771390,26.47,124.43,124.39,0.05234933]
[1766168772091,26.47,124.43,124.39,3.42964419]
[1766168772478,26.47,124.46,124.41,3.37729486]
[1766168772879,26.47,124.5,124.43,3.37729486]
[1766168773176,26.47,124.49,124.43,3.37729486]
[1766168773790,0.05406752,124.47,124.43,3.37729486]
[1766168773981,26.52406752,124.47,124.43,3.37729486]
[1766168774877,26.52406752,124.47,124.44,0.05562244]
[1766168775383,7.42477133,124.56,124.46,28.32]
[1766168775581,23.83227935,124.57,124.49,3.37729486]
[1766168775785,7.2284,124.58,124.51,3.37729486]
[1766168776381,7.2284,124.58,124.53,0.05500117]
[1766168776575,7.2284,124.58,124.51,3.37729486]
[1766168776576,0.0589304,124.56,124.51,3.37729486]
[1766168777480,26.5289304,124.56,124.52,0.0515956]
[1766168780294,26.5289304,124.56,124.52,0.0015956]
[1766168780795,28.54,124.55,124.49,3.37729486]
[1766168781591,28.54,124.54,124.49,3.37729486]
[1766168781897,0.05739703,124.53,124.49,3.37729486]
[1766168782200,28.54,124.54,124.51,3.37729486]
[1766168782894,28.54,124.56,124.51,3.37729486]
[1766168783298,0.05075604,124.55,124.52,0.05598961]
[1766168785308,28.54,124.56,124.52,0.05598961]
[1766168785593,28.54,124.56,124.53,3.37729486]
[1766168786195,28.5978633,124.56,124.53,3.37729486]
[1766168786890,28.54,124.59,124.53,31.48729486]
[1766168787095,28.54,124.61,124.55,3.37729486]
[1766168787925,0.06134813,124.59,124.57,0.05715679]
[1766168789503,0.06134813,124.59,124.55,3.37729486]
[1766168790608,0.06134813,124.59,124.56,0.05725432]
[1766168791312,28.60134813,124.59,124.56,0.05725432]
[1766168798810,28.60134813,124.59,124.53,28.11]
[1766168799913,28.60134813,124.59,124.55,0.05303736]
[1766168801999,0.00134813,124.59,124.55,27.66303736]
[1766168802206,27.6,124.64,124.57,32.87666141]
[1766168802513,27.6,124.64,124.59,5.26666141]
[1766168803212,27.6,124.66,124.57,34.8387]
[1766168803505,24.15740145,124.67,124.6,0.06007529]
[1766168803506,0.05145742,124.63,124.6,0.06007529]
[1766168803700,27.6,124.65,124.6,0.06007529]
[1766168804712,0.05903318,124.64,124.6,0.06007529]
[1766168804904,27.6,124.67,124.6,27.67007529]
[1766168805107,27.6,124.67,124.6,27.61]
[1766168805610,27.6,124.66,124.57,40.10526141]
[1766168806010,27.6,124.66,124.6,0.05804223]
[1766168806701,27.6,124.65,124.6,0.05804223]
[1766168815721,27.6,124.67,124.6,27.66804223]
[1766168815918,27.6,124.67,124.57,112.4457]
[1766168815919,112.2666,124.78,124.66,27.61]
[1766168816138,112.2666,124.78,124.65,112.373]
[1766168816139,27.6,124.78,124.71,5.26136883]
[1766168816315,27.6,124.78,124.71,0.06139452]
[1766168816913,27.6,124.78,124.71,5.32276335]
[1766168817823,23.58887939,124.78,124.72,7.97586043]
[1766168818026,159.6373,124.83,124.74,0.05950264]
[1766168818222,119.4199,124.84,124.77,0.05088703]
[1766168818420,119.4199,124.84,124.78,7.97586043]
[1766168818622,7.2137,124.84,124.8,0.00480074]
[1766168818820,112.2023,124.85,124.73,112.3016]
[1766168819020,164.87746883,124.86,124.73,117.56296883]
[1766168819327,119.393,124.87,124.74,5.26136883]
[1766168819526,0.05753306,124.82,124.79,0.05485953]
[1766168819728,0.05753306,124.82,124.79,0.06052879]
[1766168820132,27.65753306,124.82,124.75,47.42]
[1766168820632,27.6,124.81,124.68,124.82396883]
[1766168820827,27.6,124.78,124.69,47.4]
[1766168821132,0.05852434,124.75,124.72,0.06061176]
[1766168821626,0.05852434,124.75,124.72,0.00061176]
[1766168821627,27.65852434,124.75,124.72,0.00061176]
[1766168821826,27.6,124.73,124.65,47.4]
[1766168822018,27.6,124.72,124.65,47.4]
[1766168822415,27.6,124.71,124.58,119.6611]
[1766168822713,27.6,124.71,124.6,47.4]
[1766168822928,0.05781004,124.67,124.64,0.05295085]
[1766168823226,0.05781004,124.67,124.64,0.05143436]
[1766168824828,27.67781004,124.67,124.56,119.6786]
[1766168825021,27.62,124.67,124.57,159.8437]
[1766168825828,0.05297452,124.63,124.61,0.05846075]
[1766168828420,0.05297452,124.63,124.57,47.4]
[1766168828628,27.67297452,124.63,124.57,47.4]
[1766168829225,27.67297452,124.63,124.59,0.05627817]
[1766168830530,27.67297452,124.63,124.54,7.2302]
[1766168830731,27.62,124.63,124.54,7.2302]
[1766168831520,0.06156493,124.6,124.57,0.0602163]
[1766168839641,25.9,124.64,124.57,0.0602163]
[1766168839835,25.9,124.64,124.55,112.4651]
[1766168840535,25.9,124.64,124.56,7.2291]
[1766168840734,0.05807328,124.61,124.59,0.05720899]
[1766168842537,0.05807328,124.61,124.6,7.64034125]
[1766168842736,0.05807328,124.61,124.54,7.2301]
[1766168843242,0.05807328,124.61,124.55,7.2298]
[1766168843540,33.1255,124.63,124.55,7.2298]
[1766168843736,0.06101328,124.6,124.58,0.05719499]
[1766168849944,25.96101328,124.6,124.54,7.23]
[1766168850646,25.96101328,124.6,124.55,7.2297]
[1766168850846,25.96101328,124.6,124.56,0.05201499]
[1766168851547,0.06101328,124.6,124.57,7.2285]
[1766168851849,0.06101328,124.6,124.56,0.05201499]
[1766168852050,25.96101328,124.6,124.56,0.05201499]
[1766168854660,25.96101328,124.6,124.57,7.66215041]
[1766168854953,25.96101328,124.6,124.58,7.66215041]
[1766168855153,25.96101328,124.6,124.59,0.00215041]
[1766168855554,0.06101328,124.6,124.59,0.00215041]
[1766168856756,25.84101328,124.6,124.59,0.00215041]
[1766168857457,0.06101328,124.6,124.59,0.00215041]
[1766168866864,0.06101328,124.6,124.56,0.05201499]
[1766168867063,0.06101328,124.6,124.56,7.28121499]
[1766168867265,0.00101328,124.6,124.56,112.50621499]
[1766168867466,0.00101328,124.6,124.57,3.36977543]
[1766168867969,0.00101328,124.6,124.58,47.42]
[1766168868272,0.00101328,124.6,124.58,54.6481]
[1766168873688,0.00101328,124.6,124.58,47.42]
[1766168873873,0.00101328,124.6,124.58,19.41]
[1766168874080,0.00101328,124.6,124.56,7.28091499]
[1766168876684,0.00101328,124.6,124.56,0.05201499]
[1766168882884,0.00101328,124.6,124.56,7.28131499]
[1766168886687,0.00101328,124.6,124.57,7.2287]
[1766168887786,0.00101328,124.6,124.56,26.37201499]
[1766168887984,0.00101328,124.6,124.58,26.32]
[1766168888986,0.00101328,124.6,124.59,47.42]
[1766168891889,0.00101328,124.6,124.59,73.74]
[1766168901100,0.00101328,124.6,124.59,47.42]
[1766168901492,0.00101328,124.6,124.57,73.17]
[1766168902096,0.00101328,124.6,124.57,80.3987]
[1766168903901,0.00101328,124.6,124.58,7.2281]
[1766168910802,0.00101328,124.6,124.55,0.00423144]
[1766168910803,26.55101328,124.6,124.55,0.00423144]
[1766168911003,26.55101328,124.6,124.53,25.75]
[1766168911209,29.920696,124.6,124.53,25.75]
[1766168911398,26.55101328,124.6,124.53,25.75]
[1766168911800,26.55101328,124.6,124.55,25.75]
[1766168912000,26.55101328,124.6,124.55,25.80215315]
[1766168912206,26.55101328,124.6,124.55,73.22215315]
[1766168912400,26.55101328,124.6,124.55,0.00215315]
[1766168912605,3.36968272,124.59,124.51,25.75]
[1766168912798,112.3966,124.63,124.51,29.11968272]
[1766168913000,3.36968272,124.62,124.51,29.11968272]
[1766168913502,0.05674799,124.58,124.55,0.0614643]
[1766168913708,0.05674799,124.58,124.55,25.8114643]
[1766168918202,0.05674799,124.58,124.55,0.0614643]
[1766168919308,0.05674799,124.58,124.55,0.0014643]
[1766168925110,0.05674799,124.58,124.55,27.6714643]
[1766168928706,7.2245,124.65,124.57,27.67]
[1766168928909,112.3574,124.68,124.57,27.67]
[1766168929310,7.2237,124.66,124.58,34.898]
[1766168929620,112.3589,124.67,124.58,27.67]
[1766168929821,0.05140325,124.64,124.61,0.0024119]
[1766168930520,7.226,124.62,124.56,27.67]
[1766168931418,7.226,124.62,124.58,0.05456538]
[1766168931627,0.05139583,124.6,124.58,0.05456538]
[1766168932819,0.05139583,124.6,124.58,0.00456538]
[1766168933520,0.05139583,124.6,124.53,27.67]
[1766168933724,7.27849583,124.6,124.53,27.67]
[1766168934623,7.27849583,124.6,124.55,0.05506254]
[1766168936126,7.27849583,124.6,124.55,27.72506254]
[1766168940835,0.05139583,124.6,124.55,27.72506254]
[1766168945636,0.00139583,124.6,124.56,26.01]
[1766168952836,0.00139583,124.6,124.55,0.05506254]
[1766168953043,0.00139583,124.6,124.55,26.06506254]
[1766168960548,0.00139583,124.6,124.55,33.29486254]
[1766168960752,0.00139583,124.6,124.56,25.63]
[1766168967744,0.00139583,124.6,124.55,0.05506254]
[1766168968159,0.00139583,124.6,124.55,25.68506254]
[1766168968551,7.22849583,124.6,124.55,25.68506254]
[1766168970749,0.00139583,124.6,124.55,25.68506254]
[1766168971959,0.00139583,124.6,124.55,32.91496254]
[1766168973657,0.00139583,124.6,124.56,25.63]
[1766168987765,7.22859583,124.6,124.56,25.63]
[1766168989070,3.37167178,124.6,124.55,0.05506254]
[1766168990665,7.2282,124.58,124.55,0.05506254]
[1766168995874,50.81167178,124.6,124.55,0.05506254]
[1766168996078,58.03907178,124.6,124.55,0.05506254]
[1766168997681,58.03907178,124.6,124.55,24.60506254]
[1766169000479,7.22879583,124.6,124.55,24.60506254]
[1766169000681,54.66879583,124.6,124.55,24.60506254]
[1766169003581,50.81167178,124.6,124.55,0.05506254]
[1766169004685,7.2283,124.58,124.55,0.05506254]
[1766169007792,7.22899583,124.6,124.55,25.40506254]
[1766169007987,54.66899583,124.6,124.55,25.40506254]
[1766169008185,0.00139583,124.6,124.55,25.40506254]
[1766169012499,115.73637595,124.67,124.57,28.72027595]
[1766169012799,47.44,124.66,124.57,28.72027595]
[1766169013096,7.2245,124.65,124.57,25.35]
[1766169013302,3.37027595,124.65,124.57,25.35]
[1766169013501,0.05307471,124.62,124.6,0.055169]
[1766169014600,0.05307471,124.62,124.57,25.35]
[1766169014895,3.42335066,124.62,124.55,72.79]
[1766169015201,10.59737595,124.6,124.55,25.35]
[1766169015405,10.59737595,124.6,124.53,25.35]
[1766169015603,0.05791087,124.58,124.55,0.05575453]
[1766169018307,3.42818682,124.58,124.55,0.05575453]
[1766169020406,0.05791087,124.58,124.55,24.79575453]
[1766169025904,7.2258,124.63,124.55,24.79575453]
[1766169026206,3.37027595,124.64,124.55,28.11027595]
[1766169027108,3.37027595,124.64,124.59,24.74]
[1766169027706,5.29,124.63,124.58,0.05230314]
[1766169027911,3.37027595,124.6,124.52,7.51274127]
[1766169028205,3.37113953,124.6,124.51,7.51274127]
[1766169028404,10.59823953,124.6,124.53,7.2308]
[1766169028914,0.05843069,124.58,124.55,0.05443633]
[1766169029717,0.05843069,124.58,124.55,24.79443633]
[1766169034911,12.5163,124.62,124.55,24.79443633]
[1766169035116,15.88743953,124.62,124.55,24.79443633]
[1766169035617,15.88743953,124.62,124.56,24.31]
[1766169036020,0.05897735,124.6,124.58,0.05154888]
[1766169041120,12.415,124.64,124.58,24.36154888]
[1766169041323,5.19,124.64,124.58,24.36154888]
[1766169042222,0.05131339,124.62,124.58,31.58974888]
[1766169042425,0.05131339,124.62,124.58,24.36154888]
[1766169056733,4.92,124.61,124.56,24.31]
[1766169057039,4.92,124.61,124.54,24.31]
[1766169057040,5.26508024,124.61,124.54,24.31]
[1766169057333,17.41158024,124.61,124.54,24.31]
[1766169057732,0.05123659,124.59,124.56,0.05075335]
[1766169065740,7.27893659,124.59,124.56,0.05075335]
[1766169065940,4.85123659,124.59,124.5,47.44]
[1766169066136,4.8,124.59,124.5,47.44]
[1766169067044,0.00392302,124.56,124.53,0.05793007]
[1766169067846,0.00392302,124.56,124.53,24.90793007]
[1766169075241,25.4769,124.61,124.54,24.85]
[1766169075440,18.25,124.61,124.54,24.85]
[1766169075639,25.4672,124.6,124.54,24.85]
[1766169075845,18.24,124.59,124.54,24.85]
[1766169076247,0.05612586,124.58,124.55,0.05175856]
[1766169076649,7.28432586,124.58,124.55,0.05175856]
[1766169076858,25.51432586,124.58,124.55,0.05175856]
[1766169077057,18.28612586,124.58,124.52,24.85]
[1766169077258,7.2295,124.56,124.52,24.85]
[1766169077463,7.2295,124.56,124.5,47.44]
[1766169077464,18.23,124.56,124.5,24.85]
[1766169078164,0.05255769,124.54,124.52,0.05431502]
[1766169079857,0.00255769,124.54,124.52,0.05431502]
[1766169080053,0.00255769,124.54,124.52,26.01431502]
[1766169090871,5.26508024,124.59,124.52,26.01431502]
[1766169091077,7.2275,124.6,124.52,26.01431502]
[1766169091078,25.3875,124.6,124.52,26.01431502]
[1766169091372,25.3875,124.6,124.52,25.96]
[1766169091574,25.3875,124.6,124.53,25.96]
[1766169092068,0.05225159,124.58,124.55,0.0607829]
[1766169094369,0.05225159,124.58,124.55,24.9607829]
[1766169094370,0.00225159,124.58,124.55,24.9607829]
[1766169095665,0.00225159,124.58,124.55,32.1906829]
[1766169096275,0.00225159,124.58,124.56,24.9]
[1766169097366,0.00225159,124.58,124.55,0.0607829]
[1766169099378,3.3744158,124.58,124.55,0.0607829]
[1766169103872,21.4644158,124.58,124.52,24.9]
[1766169104080,21.4644158,124.58,124.51,24.9]
[1766169104269,21.46216421,124.58,124.51,24.9]
[1766169105076,0.06112445,124.56,124.53,0.05698497]
[1766169114480,0.06112445,124.56,124.5,24.9]
[1766169114481,25.18,124.55,124.5,24.9]
[1766169114679,17.95,124.55,124.5,24.9]
[1766169115487,17.95,124.55,124.51,0.05142241]
[1766169120093,0.06112445,124.56,124.51,24.95142241]
[1766169120391,0.00112445,124.56,124.51,28.32358662]
[1766169120784,0.00112445,124.56,124.54,24.9]
[1766169121383,0.00112445,124.56,124.54,24.95787865]
[1766169125087,0.00112445,124.56,124.54,0.05787865]
[1766169125392,17.85112445,124.56,124.5,32.4424]